bitfinex/quotes_ETHUSD_20250130
["timestamp","ask_amount","ask_price","bid_price","bid_amount"]
[1738270866691,3.14040395,3235.2,3234.9,0.55]
[1738270866891,3.91296,3236.0,3234.9,0.55]
[1738270867194,3.09085,3235.4,3234.9,0.55]
[1738270867376,3.09109,3235.2,3234.8,0.67638517]
[1738270867578,3.09121,3235.0,3234.5,0.8186]
[1738270867763,3.09121,3235.0,3234.6,0.55]
[1738270868382,3.09121,3235.0,3234.2,0.364197]
[1738270868383,0.02294677,3234.9,3234.2,0.364197]
[1738270868595,3.09173,3234.5,3233.9,3.85983]
[1738270868939,3.09205,3234.1,3233.9,0.7676]
[1738270869096,3.09214,3234.0,3233.5,0.8325]
[1738270869396,3.09205,3234.1,3233.5,3.92507]
[1738270869691,3.0919,3234.3,3233.8,0.55]
[1738270869893,3.09205,3234.1,3233.5,3.92507]
[1738270870190,3.09205,3234.1,3233.6,0.392507]
[1738270870564,3.09205,3234.1,3233.7,0.55]
[1738270870955,3.0919,3234.3,3233.7,3.64242]
[1738270871154,3.09196,3234.2,3233.7,3.64242]
[1738270871350,3.09206,3234.1,3233.7,0.55]
[1738270871555,3.0919,3234.3,3233.7,0.55]
[1738270871955,3.09197,3234.2,3233.7,0.55]
[1738270872205,3.09249,3233.7,3233.1,3.09296]
[1738270872411,0.8202,3234.2,3233.1,1.123596]
[1738270872412,3.09201,3234.2,3233.1,1.123596]
[1738270872705,3.09201,3234.2,3233.6,3.09247]
[1738270872901,3.09178,3234.4,3233.7,0.55]
[1738270873101,3.09178,3234.4,3233.8,3.09232]
[1738270873404,3.09161,3234.6,3233.8,3.09232]
[1738270873405,0.7902,3235.1,3234.3,0.55]
[1738270873605,3.09126,3235.0,3234.3,0.55]
[1738270873766,3.09085,3235.4,3234.3,0.94510119]
[1738270873972,3.09148,3234.7,3234.3,0.914186]
[1738270874220,3.09148,3234.7,3233.8,3.90096]
[1738270874221,0.02294677,3234.6,3233.8,3.90096]
[1738270874368,3.09151,3234.7,3233.8,3.90096]
[1738270874563,3.09172,3234.5,3233.9,0.55]
[1738270874806,3.09172,3234.5,3233.9,3.64223]
[1738270875206,6.18307,3234.7,3233.9,0.55]
[1738270875410,3.0,3235.3,3234.3,0.55]
[1738270875615,3.0914,3234.8,3234.3,3.64183]
[1738270876442,3.0914,3234.8,3234.2,0.55]
[1738270877214,3.0914,3234.8,3234.2,3.64189]
[1738270877702,3.09161,3234.6,3233.9,6.18439]
[1738270877910,3.09161,3234.6,3233.9,3.791469]
[1738270878418,3.09142,3234.8,3234.0,0.55]
[1738270878579,3.09105,3235.2,3234.5,3.09157]
[1738270878777,3.0908,3235.4,3234.4,0.8177]
[1738270879007,3.09092,3235.3,3234.9,0.55]
[1738270879173,3.0908,3235.4,3234.9,0.55]
[1738270879376,3.0908,3235.4,3234.9,3.64126]
[1738270880103,3.0908,3235.4,3234.9,0.55]
[1738270880307,3.0908,3235.4,3234.9,3.64126]
[1738270880625,3.09058,3235.7,3235.1,0.55]
[1738270880916,3.86628,3235.9,3234.7,3.0914]
[1738270880917,3.09101,3235.2,3234.7,3.0914]
[1738270881128,3.09136,3234.9,3234.4,0.8225]
[1738270881442,3.0911,3235.1,3234.5,0.55]
[1738270881725,3.0912,3235.0,3234.5,0.55]
[1738270881883,3.09042,3235.8,3234.8,0.55]
[1738270882217,3.09093,3235.3,3234.6,0.55]
[1738270883191,3.09093,3235.3,3234.8,0.55]
[1738270883504,0.7759,3235.9,3234.6,0.55]
[1738270883703,3.09057,3235.7,3235.2,0.7925]
[1738270884078,3.09077,3235.5,3235.2,0.7925]
[1738270884278,3.0907,3235.6,3235.2,0.7925]
[1738270884504,3.09074,3235.5,3235.2,0.7925]
[1738270886079,3.09057,3235.7,3235.3,0.55]
[1738270886292,3.09035,3235.9,3235.3,0.55]
[1738270886497,3.09049,3235.8,3235.3,3.64089]
[1738270887520,3.09058,3235.7,3235.3,0.55]
[1738270887763,3.09058,3235.7,3235.2,0.55]
[1738270888054,6.18118,3235.7,3235.2,0.55]
[1738270888221,3.09058,3235.7,3235.2,0.55]
[1738270889145,3.09058,3235.7,3235.2,3.64098]
[1738270890453,6.18119,3235.7,3235.1,0.55]
[1738270890645,3.09058,3235.7,3235.1,0.55]
[1738270890824,3.09058,3235.7,3235.1,3.64105]
[1738270891365,3.09058,3235.7,3235.3,0.55]
[1738270892047,3.09038,3235.9,3235.2,0.55]
[1738270892261,3.09019,3236.1,3235.7,0.55]
[1738270892545,4.97417237,3236.4,3235.9,1.3264]
[1738270892751,3.08951,3236.8,3236.1,0.55]
[1738270893051,3.52403017,3237.4,3236.1,0.55]
[1738270893052,3.08905,3237.3,3236.7,3.63954]
[1738270893347,3.08897,3237.4,3236.7,3.63953]
[1738270893348,6.17794,3237.4,3236.7,3.63953]
[1738270893679,3.08897,3237.4,3236.7,4.42098977]
[1738270893966,3.08897,3237.4,3236.8,0.55]
[1738270894309,3.08904,3237.3,3236.8,0.55]
[1738270894513,3.08897,3237.4,3236.8,3.63945]
[1738270894713,3.08871,3237.6,3237.1,0.55]
[1738270894962,3.08871,3237.6,3237.0,0.55]
[1738270895168,3.0889,3237.4,3236.9,0.55]
[1738270895386,3.0889,3237.4,3237.0,0.363941]
[1738270897466,3.0889,3237.4,3236.9,0.55]
[1738270899607,3.08852,3237.8,3237.2,1.3456]
[1738270899822,3.08871,3237.6,3237.2,1.3456]
[1738270900904,3.0888,3237.5,3237.2,1.3456]
[1738270902164,3.08849,3237.9,3237.3,0.55]
[1738270902328,3.08866,3237.7,3237.3,0.55]
[1738270902618,3.08885,3237.5,3237.3,0.55]
[1738270902839,3.08889,3237.4,3237.3,0.55]
[1738270902969,3.08901,3237.3,3236.8,3.7875]
[1738270903174,3.08901,3237.3,3236.8,0.7875]
[1738270903175,3.0892,3237.1,3236.8,0.7875]
[1738270904197,3.08901,3237.3,3236.9,0.55]
[1738270904946,3.08883,3237.5,3236.9,0.55]
[1738270905222,3.08862,3237.7,3237.2,0.55]
[1738270905390,6.17696,3237.9,3237.4,0.55]
[1738270905591,3.08865,3237.7,3237.4,0.55]
[1738270905793,3.08865,3237.7,3237.2,0.55]
[1738270905995,6.17696,3237.9,3237.2,0.55]
[1738270906185,3.08853,3237.8,3237.2,4.002942]
[1738270907074,3.08862,3237.7,3237.2,0.913912]
[1738270907283,3.08862,3237.7,3237.2,0.55]
[1738270907584,3.08895,3237.4,3236.8,0.7875]
[1738270907824,3.08842,3237.9,3236.8,0.7875]
[1738270907825,3.08924,3237.1,3236.8,0.7875]
[1738270908317,3.08933,3237.0,3236.8,0.7875]
[1738270908524,3.08933,3237.0,3236.9,0.55]
[1738270908891,3.08985,3236.4,3236.1,0.8139]
[1738270909095,3.08967,3236.6,3236.1,0.8139]
[1738270909393,3.08962,3236.7,3236.1,3.90398]
[1738270909802,3.08942,3236.9,3236.4,3.08983]
[1738270910016,3.08942,3236.9,3235.8,0.62063422]
[1738270910017,3.08903,3237.3,3236.8,1.3478]
[1738270910177,3.08903,3237.3,3236.9,0.03089059]
[1738270910706,3.08903,3237.3,3236.8,1.3478]
[1738270911013,3.08881,3237.5,3237.0,0.55]
[1738270911523,3.08865,3237.7,3237.0,4.391842]
[1738270911732,3.08877,3237.6,3237.0,4.391842]
[1738270912035,3.08877,3237.6,3237.2,0.55]
[1738270912194,3.08862,3237.7,3237.2,0.55]
[1738270912576,3.08876,3237.6,3237.2,0.55]
[1738270912801,3.08876,3237.6,3237.2,0.9891772]
[1738270913724,3.08881,3237.5,3237.2,0.55]
[1738270913930,3.08862,3237.7,3237.2,0.55]
[1738270914163,3.08862,3237.7,3237.1,3.63916]
[1738270916288,3.08872,3237.6,3237.1,3.63916]
[1738270916799,3.08862,3237.7,3237.1,3.63916]
[1738270917010,3.08845,3237.9,3237.5,0.8198]
[1738270917212,3.08845,3237.9,3237.6,0.55]
[1738270917388,3.08861,3237.7,3237.6,0.55]
[1738270918595,3.08861,3237.7,3237.6,35.55]
[1738270918936,3.08823,3238.1,3237.6,38.08869]
[1738270919146,3.08823,3238.1,3237.7,0.55]
[1738270919342,3.54697694,3238.6,3237.5,0.8198]
[1738270919343,3.08851,3237.8,3237.5,0.8198]
[1738270919627,3.0887,3237.6,3237.1,0.62742601]
[1738270919827,3.0887,3237.6,3237.5,35.55]
[1738270920036,3.08851,3237.8,3237.5,35.55]
[1738270920234,3.08855,3237.8,3237.5,35.55]
[1738270920434,3.08835,3238.0,3237.6,0.55]
[1738270920611,3.08851,3237.9,3237.6,0.55]
[1738270921340,3.08784,3238.5,3237.8,0.55]
[1738270921511,3.08753,3238.9,3238.3,0.55]
[1738270921838,3.08753,3238.9,3238.5,0.55]
[1738270922036,3.08731,3239.1,3238.5,1.3602]
[1738270922413,3.08752,3238.9,3238.5,1.3602]
[1738270922840,3.08752,3238.9,3238.6,35.0]
[1738270923036,3.08757,3238.8,3238.6,35.0]
[1738270923244,3.08744,3239.0,3238.6,35.0]
[1738270923543,3.08708,3239.4,3238.7,3.63757]
[1738270924048,3.08725,3239.2,3238.8,0.55]
[1738270924201,3.08689,3239.5,3238.8,35.0]
[1738270924401,3.08746,3238.9,3238.8,35.0]
[1738270925229,3.08786,3238.5,3238.2,0.8184]
[1738270925529,3.08786,3238.5,3238.0,0.55]
[1738270925727,3.08813,3238.2,3237.8,0.7516]
[1738270926043,3.08796,3238.4,3237.9,0.55]
[1738270926245,3.08796,3238.4,3237.8,0.7516]
[1738270926428,3.08796,3238.4,3237.8,4.28623585]
[1738270926751,3.91608,3239.0,3238.2,0.55]
[1738270926752,3.08756,3238.8,3238.2,0.55]
[1738270926937,3.08756,3238.8,3238.4,0.55]
[1738270927147,3.08767,3238.7,3238.4,0.55]
[1738270927757,3.08775,3238.6,3238.2,0.55]
[1738270928109,3.08756,3238.8,3238.2,3.63812]
[1738270928308,3.08756,3238.8,3238.2,4.001939]
[1738270928840,3.08772,3238.7,3238.2,0.913819]
[1738270929046,3.08753,3238.9,3238.4,0.55]
[1738270929301,3.08733,3239.1,3238.6,0.55]
[1738270929425,3.08733,3239.1,3238.6,3.6377]
[1738270929749,3.087,3239.4,3238.8,3.6375]
[1738270930541,3.087,3239.4,3239.0,0.55]
[1738270930945,3.087,3239.4,3238.8,0.36375]
[1738270931152,3.08719,3239.2,3238.7,3.63765]
[1738270932535,6.17405,3239.4,3238.7,3.63765]
[1738270933138,3.08714,3239.3,3238.7,3.63765]
[1738270933351,3.08734,3239.1,3238.7,0.55]
[1738270935448,3.08734,3239.1,3238.6,0.55]
[1738270935649,3.89634,3239.7,3239.2,0.55]
[1738270935969,3.08688,3239.6,3239.2,1.3421]
[1738270936662,3.08705,3239.4,3238.9,1.309]
[1738270936897,3.08709,3239.3,3238.9,1.309]
[1738270937245,3.0869,3239.5,3238.9,4.8805563]
[1738270937745,3.087,3239.4,3238.9,4.8805563]
[1738270938145,3.08712,3239.3,3238.9,1.7931063]
[1738270938385,3.08737,3239.0,3238.9,0.55]
[1738270938561,3.08752,3238.9,3238.5,0.7565]
[1738270938892,3.10998677,3239.4,3238.2,0.8203]
[1738270939187,3.10998677,3239.4,3238.2,3.90841]
[1738270939188,3.08763,3238.8,3238.2,3.90841]
[1738270939499,3.08763,3238.8,3238.3,0.55]
[1738270939783,3.08763,3238.8,3238.4,0.445841]
[1738270940002,3.08763,3238.8,3238.5,0.55]
[1738270941747,0.799,3239.5,3238.3,0.55]
[1738270941953,3.08733,3239.1,3238.6,0.55]
[1738270942350,3.08748,3238.9,3238.6,0.55]
[1738270942550,3.08756,3238.8,3238.6,0.55]
[1738270943149,3.03777,3238.6,3238.2,0.8203]
[1738270943580,3.03777,3238.6,3238.3,0.55]
[1738270943782,0.799,3239.5,3238.3,0.55]
[1738270943783,3.08741,3239.0,3238.5,0.55]
[1738270943984,6.17446,3239.2,3238.7,0.55]
[1738270944186,0.799,3239.5,3238.5,0.55]
[1738270944187,3.08739,3239.0,3238.5,0.55]
[1738270944418,3.08742,3239.0,3238.5,0.55]
[1738270944785,3.08742,3239.0,3238.5,3.63784]
[1738270945309,3.0873,3239.1,3238.5,4.31041]
[1738270945616,3.08719,3239.2,3238.7,0.55]
[1738270945789,3.08701,3239.4,3238.7,0.55]
[1738270945991,3.08683,3239.6,3239.0,3.08736]
[1738270946195,3.08672,3239.7,3239.1,0.55]
[1738270946420,3.08672,3239.7,3239.3,0.55]
[1738270946922,3.08654,3239.9,3239.5,0.55]
[1738270947123,3.08661,3239.8,3239.5,0.55]
[1738270947784,6.1733,3239.8,3239.5,0.55]
[1738270947985,3.08676,3239.7,3239.5,0.55]
[1738270948286,3.08661,3239.8,3239.5,0.55]
[1738270948700,6.1733,3239.8,3239.5,0.55]
[1738270948911,3.08661,3239.8,3239.5,0.55]
[1738270949115,6.1733,3239.8,3239.5,0.55]
[1738270949325,3.08673,3239.7,3239.5,0.55]
[1738270949632,3.0868,3239.6,3239.5,0.55]
[1738270949837,3.0868,3239.6,3239.2,0.363736]
[1738270950043,6.17368,3239.6,3239.2,0.363736]
[1738270950335,3.08706,3239.4,3239.2,0.363736]
[1738270950650,3.0869,3239.5,3239.3,0.55]
[1738270950986,3.0869,3239.5,3239.1,0.55]
[1738270950987,3.08691,3239.5,3239.1,0.55]
[1738270951627,3.08705,3239.4,3239.1,0.55]
[1738270951835,3.08691,3239.5,3239.1,0.55]
[1738270952000,6.17389,3239.5,3239.1,0.55]
[1738270952205,6.17389,3239.5,3239.4,35.55]
[1738270952742,3.08691,3239.5,3239.4,35.55]
[1738270955044,3.08691,3239.5,3239.4,35.0]
[1738270955223,3.90731,3239.5,3239.4,35.0]
[1738270955890,4.915395,3239.5,3239.4,35.0]
[1738270956525,3.90731,3239.5,3239.4,35.0]
[1738270957120,3.08691,3239.5,3239.4,35.0]
[1738270958536,3.87201,3239.5,3239.4,35.0]
[1738270962757,3.87201,3239.5,3237.8,3.08842]
[1738270962758,3.08794,3238.4,3237.8,3.08842]
[1738270962898,6.17565,3238.6,3238.0,3.0883]
[1738270963246,6.17565,3238.6,3238.2,0.55]
[1738270963648,3.08781,3238.6,3238.5,35.0]
[1738270963852,1.03863628,3239.3,3238.5,35.0]
[1738270963853,6.17525,3238.8,3238.5,35.0]
[1738270963993,3.0874,3239.0,3238.6,0.55]
[1738270964197,3.0874,3239.0,3238.6,3.67998842]
[1738270964743,6.17486,3239.0,3238.6,3.67998842]
[1738270964944,3.08755,3238.9,3238.6,3.67998842]
[1738270965249,6.87512,3239.5,3238.8,0.55]
[1738270965250,3.08732,3239.1,3238.8,0.55]
[1738270965798,3.08738,3239.0,3238.8,0.55]
[1738270966402,3.08746,3238.9,3238.8,0.55]
[1738270966625,3.08738,3239.0,3238.8,0.55]
[1738270967443,6.17448,3239.2,3238.8,0.55]
[1738270968035,3.08728,3239.1,3238.8,0.55]
[1738270969240,3.08723,3239.2,3238.8,0.55]
[1738270970142,3.08723,3239.2,3238.9,35.0]
[1738270971013,6.17448,3239.2,3238.9,35.0]
[1738270971211,3.08723,3239.2,3238.9,35.0]
[1738270971609,3.08729,3239.1,3238.9,35.0]
[1738270974065,3.08723,3239.2,3238.9,35.0]
[1738270974217,3.08737,3239.0,3238.9,35.55]
[1738270976162,3.08723,3239.2,3238.9,35.55]
[1738270976771,3.08704,3239.4,3239.0,0.55]
[1738270977081,3.08665,3239.8,3239.0,0.55]
[1738270977284,6.17335,3239.8,3239.3,0.55]
[1738270977451,6.17335,3239.8,3239.3,1.3476]
[1738270977861,3.08665,3239.8,3239.3,1.3476]
[1738270978289,3.08665,3239.8,3239.3,2.099796]
[1738270978490,6.17333,3239.8,3239.3,2.099796]
[1738270978644,3.08671,3239.7,3239.3,2.099796]
[1738270979407,3.08665,3239.8,3239.3,5.186866]
[1738270979691,3.08642,3240.0,3239.3,5.186866]
[1738270979982,3.08653,3239.9,3239.5,0.55]
[1738270980483,3.08667,3239.8,3239.6,35.0]
[1738270980688,3.0867,3239.7,3239.6,35.0]
[1738270980836,3.08713,3239.3,3238.9,0.7747]
[1738270981042,3.08692,3239.5,3239.0,0.55]
[1738270981483,3.08692,3239.5,3239.2,0.55]
[1738270981783,3.08675,3239.7,3239.2,0.55]
[1738270982018,3.08675,3239.7,3239.0,0.55]
[1738270982137,3.08675,3239.7,3239.1,3.0872]
[1738270982341,3.70036457,3240.6,3239.1,3.0872]
[1738270982342,0.8293,3240.8,3239.6,0.55]
[1738270982544,0.8293,3240.8,3239.8,0.55]
[1738270982764,3.08583,3240.7,3240.2,0.55]
[1738270982979,0.66666667,3241.2,3239.5,1.45338598]
[1738270982980,0.8293,3240.4,3239.5,1.45338598]
[1738270983184,0.8293,3240.4,3239.5,0.8316]
[1738270983480,0.8293,3240.4,3239.6,0.55]
[1738270983481,3.0864,3240.1,3239.6,0.55]
[1738270983640,3.0864,3240.1,3239.8,0.55]
[1738270983843,3.08647,3240.0,3239.8,0.55]
[1738270984078,3.08651,3239.9,3239.8,0.55]
[1738270984583,3.08651,3239.9,3239.8,35.55]
[1738270985366,3.08651,3239.9,3239.8,35.0]
[1738270985580,6.17376,3239.6,3239.1,0.8117]
[1738270985747,3.08688,3239.6,3239.1,3.89892]
[1738270985947,3.91538,3240.4,3239.1,3.89892]
[1738270985948,3.91538,3240.4,3239.2,38.63715]
[1738270986191,3.0865,3240.0,3239.5,0.55]
[1738270986499,3.08622,3240.2,3239.5,0.55]
[1738270986665,3.08635,3240.1,3239.7,0.55]
[1738270986844,3.08635,3240.1,3239.8,35.0]
[1738270988377,3.08613,3240.3,3239.9,0.55]
[1738270988597,3.08595,3240.5,3239.9,0.55]
[1738270988886,3.08595,3240.5,3240.1,0.55]
[1738270989186,3.08586,3240.6,3240.1,0.55]
[1738270989344,3.08594,3240.5,3240.1,3.67998842]
[1738270989545,3.0,3241.0,3240.1,3.67998842]
[1738270989546,3.08612,3240.4,3240.1,0.55]
[1738270989969,6.17182,3240.6,3240.2,35.0]
[1738270990182,3.08589,3240.6,3240.2,35.0]
[1738270990879,3.08596,3240.5,3240.2,35.0]
[1738270991197,3.08593,3240.6,3240.2,35.0]
[1738270991347,3.08593,3240.6,3240.2,38.12998842]
[1738270994116,3.0857,3240.8,3240.2,41.21620842]
[1738270994306,3.08557,3240.9,3240.3,0.55]
[1738270994533,3.08557,3240.9,3240.4,3.08603]
[1738270994708,3.08557,3240.9,3240.5,0.363603]
[1738270995006,3.08549,3241.0,3240.5,3.449523]
[1738270995209,6.17103,3241.0,3240.5,0.363603]
[1738270995524,3.08549,3241.0,3240.6,0.7654]
[1738270996020,3.08565,3240.8,3240.5,0.363603]
[1738270996227,3.08565,3240.8,3240.3,0.7654]
[1738270996365,3.08587,3240.6,3240.3,0.7654]
[1738270996571,3.08602,3240.5,3240.2,38.12998842]
[1738270997002,3.0858,3240.7,3240.2,38.12998842]
[1738270997807,3.08587,3240.6,3240.2,38.12998842]
[1738270998016,3.08587,3240.6,3240.3,0.3692467]
[1738270998218,3.08573,3240.8,3240.3,0.3692467]
[1738270998424,3.08582,3240.7,3240.3,0.3692467]
[1738270999614,3.08584,3240.6,3240.3,0.3692467]
[1738271000206,3.08584,3240.6,3240.4,35.0]
[1738271001150,3.08594,3240.5,3240.4,35.0]
[1738271001452,3.08634,3240.1,3239.7,0.7741]
[1738271001614,3.08644,3240.0,3239.7,0.7741]
[1738271001815,3.08644,3240.0,3239.8,35.55]
[1738271002653,6.17254,3240.2,3239.8,35.55]
[1738271002849,3.08625,3240.2,3239.8,35.55]
[1738271002999,3.08625,3240.2,3239.8,38.67998842]
[1738271003515,3.08639,3240.1,3239.8,38.67998842]
[1738271004139,3.08619,3240.3,3239.8,41.76658842]
[1738271004458,3.08619,3240.3,3239.8,38.67998842]
[1738271004754,3.08619,3240.3,3239.9,0.3834755]
[1738271005322,3.08619,3240.3,3240.0,35.0]
[1738271005707,3.08589,3240.6,3240.1,3.90642]
[1738271006015,3.08576,3240.7,3240.2,3.08622]
[1738271006322,3.08576,3240.7,3240.1,3.90642]
[1738271006323,3.08585,3240.6,3240.3,35.699264]
[1738271006520,3.08596,3240.5,3240.3,35.699264]
[1738271006718,3.08596,3240.5,3240.3,35.0]
[1738271007854,3.08603,3240.4,3240.3,35.0]
[1738271008048,3.08596,3240.5,3240.3,35.0]
[1738271008823,3.08566,3240.8,3240.3,38.08608]
[1738271009012,3.08566,3240.8,3240.3,35.0]
[1738271009221,3.08578,3240.7,3240.3,38.12998842]
[1738271009764,3.08593,3240.6,3240.3,38.12998842]
[1738271009934,3.08585,3240.6,3240.3,38.12998842]
[1738271010754,3.08565,3240.9,3240.3,41.21602842]
[1738271010953,3.08565,3240.9,3240.4,3.63596]
[1738271011147,3.08561,3240.9,3240.5,3.12998842]
[1738271011736,6.17124,3240.9,3240.5,3.12998842]
[1738271012143,3.08561,3240.9,3240.5,3.12998842]
[1738271012660,3.08574,3240.8,3240.5,3.12998842]
[1738271013214,3.08572,3240.8,3240.5,3.12998842]
[1738271013425,6.17125,3240.9,3240.6,0.36799884]
[1738271013840,3.08561,3240.9,3240.6,0.36799884]
[1738271014441,3.08561,3240.9,3240.4,0.55]
[1738271014641,3.08566,3240.8,3240.7,35.0]
[1738271015044,3.08561,3240.9,3240.7,35.0]
[1738271015654,3.08599,3240.5,3240.1,0.8201]
[1738271015867,3.08623,3240.2,3239.8,0.8062]
[1738271016029,3.08623,3240.2,3240.0,0.55]
[1738271016231,3.08549,3241.0,3240.0,1.18175573]
[1738271016434,3.08591,3240.6,3240.0,4.26816573]
[1738271016748,3.08598,3240.5,3240.0,4.26816573]
[1738271016963,3.08598,3240.5,3240.1,35.0]
[1738271017168,3.08605,3240.4,3240.1,35.59638156]
[1738271018666,3.08603,3240.5,3240.1,35.59638156]
[1738271019061,3.08588,3240.6,3240.1,35.59638156]
[1738271019365,3.08619,3240.3,3240.1,35.0]
[1738271019666,3.0861,3240.4,3240.1,35.0]
[1738271019865,3.08622,3240.2,3240.1,35.0]
[1738271020075,6.17222,3240.4,3240.1,35.0]
[1738271020372,3.0861,3240.4,3240.1,36.82986397]
[1738271020868,0.66666667,3241.2,3240.4,0.55]
[1738271021168,3.08552,3241.0,3240.4,3.63598]
[1738271021371,0.66666667,3241.2,3240.6,35.0]
[1738271021518,3.08543,3241.1,3240.6,35.0]
[1738271021720,3.08543,3241.1,3240.7,3.12998842]
[1738271021919,3.08557,3240.9,3240.7,3.12998842]
[1738271023322,3.08543,3241.1,3240.7,3.12998842]
[1738271023523,3.08543,3241.1,3240.8,0.7517]
[1738271024032,0.66666667,3241.2,3240.8,0.7517]
[1738271024236,0.66666667,3241.2,3240.9,0.69673784]
[1738271024675,3.75196667,3241.2,3240.9,0.69673784]
[1738271025373,3.75196667,3241.2,3241.0,35.0]
[1738271026643,3.08537,3241.1,3241.0,35.0]
[1738271026838,3.75196667,3241.2,3241.0,35.0]
[1738271027475,6.83731667,3241.2,3241.0,35.0]
[1738271027674,3.75196667,3241.2,3241.0,35.0]
[1738271027830,3.08537,3241.1,3241.0,35.0]
[1738271030898,3.03441965,3241.1,3241.0,38.12998842]
[1738271032452,3.03441965,3241.1,3241.0,3.12998842]
[1738271032648,3.75196667,3241.2,3240.6,0.60232074]
[1738271032951,3.08548,3241.0,3240.7,35.0]
[1738271034889,0.66666667,3241.2,3240.8,0.55]
[1738271035299,0.66666667,3241.2,3240.7,3.63568]
[1738271035461,0.66666667,3241.2,3240.9,35.0]
[1738271035802,0.66666667,3241.2,3241.0,3.95238842]
[1738271036178,0.66666667,3241.2,3240.7,3.08568]
[1738271036179,3.08537,3241.1,3240.7,0.8224]
[1738271036500,3.08537,3241.1,3240.8,35.0]
[1738271038832,0.66666667,3241.2,3240.8,35.0]
[1738271038985,0.66666667,3241.2,3240.9,0.55]
[1738271039188,0.66666667,3241.2,3241.0,3.12998842]
[1738271039388,0.66666667,3241.2,3240.9,0.55]
[1738271039618,0.66666667,3241.2,3241.1,35.0]
[1738271040637,3.75193667,3241.2,3241.1,35.0]
[1738271041827,3.08566,3240.8,3240.6,0.60232074]
[1738271042217,3.08566,3240.8,3240.7,35.0]
[1738271042441,3.08632,3240.1,3239.9,0.389284]
[1738271042729,3.08613,3240.3,3239.9,0.61911743]
[1738271042930,6.17196,3240.5,3240.0,35.0]
[1738271043231,3.08609,3240.4,3240.0,35.0]
[1738271043440,3.08596,3240.5,3240.0,38.08635]
[1738271043616,3.08579,3240.7,3240.3,0.55]
[1738271043819,3.08579,3240.7,3240.4,0.363621]
[1738271044225,3.0856,3240.9,3240.4,0.363621]
[1738271044426,3.0856,3240.9,3240.5,0.55]
[1738271044609,3.08567,3240.8,3240.4,0.363621]
[1738271044803,3.08576,3240.7,3240.4,0.363621]
[1738271044995,3.08576,3240.7,3240.3,0.755]
[1738271045536,3.08558,3240.9,3240.3,0.755]
[1738271045851,3.08563,3240.9,3240.3,3.84111]
[1738271046044,3.08566,3240.8,3240.3,3.84111]
[1738271046242,6.17102,3241.0,3240.4,3.63602]
[1738271046544,3.08556,3240.9,3240.5,0.747713]
[1738271047541,3.08578,3240.7,3240.5,0.747713]
[1738271047744,3.08578,3240.7,3240.4,0.55]
[1738271048244,6.17122,3240.9,3240.4,0.55]
[1738271048395,3.08558,3240.9,3240.4,0.55]
[1738271048599,3.08546,3241.0,3240.4,3.63602]
[1738271048834,3.08537,3241.1,3240.7,0.55]
[1738271049143,3.08537,3241.1,3240.8,35.363584]
[1738271049741,3.08548,3241.0,3240.8,35.363584]
[1738271050097,3.08537,3241.1,3240.8,35.363584]
[1738271050329,3.86907,3241.6,3240.8,35.363584]
[1738271050538,3.0854,3241.1,3240.8,35.363584]
[1738271050720,3.0854,3241.1,3240.9,3.12998842]
[1738271051111,3.0854,3241.1,3240.8,0.363584]
[1738271051314,3.0854,3241.1,3241.0,35.0]
[1738271051845,3.08521,3241.3,3241.0,35.0]
[1738271051999,3.08521,3241.3,3241.0,35.8014]
[1738271052398,3.085,3241.5,3241.0,35.8014]
[1738271052712,3.0848,3241.7,3241.1,3.63528]
[1738271052914,3.0848,3241.7,3241.3,0.55]
[1738271054119,3.08466,3241.9,3241.3,3.63514]
[1738271054313,3.08471,3241.8,3241.3,3.63514]
[1738271054752,3.08468,3241.9,3241.3,3.63508]
[1738271054919,3.08477,3241.8,3241.3,3.63508]
[1738271055134,3.08477,3241.8,3241.4,0.67650684]
[1738271055936,3.08477,3241.8,3241.5,35.0]
[1738271056767,3.08445,3242.1,3241.6,1.3489]
[1738271057431,3.08445,3242.1,3241.7,35.0]
[1738271057635,3.75103667,3242.2,3241.8,0.55]
[1738271057828,3.75103667,3242.2,3241.9,3.12998842]
[1738271058034,0.66666667,3242.2,3241.8,0.55]
[1738271058232,0.66666667,3242.2,3242.0,35.0]
[1738271058821,0.66666667,3242.2,3242.1,3.63442]
[1738271059058,0.66666667,3242.2,3242.1,4.39722]
[1738271059561,0.66666667,3242.2,3242.1,1.3128]
[1738271059785,0.66666667,3242.2,3242.1,4.44278842]
[1738271060123,0.66666667,3242.2,3242.1,7.52720842]
[1738271061767,0.66666667,3242.2,3242.1,8.1519152]
[1738271062263,0.66666667,3242.2,3242.1,1.93750678]
[1738271062468,0.66666667,3242.2,3242.1,40.02192678]
[1738271066076,0.66666667,3242.2,3242.1,35.0]
[1738271066227,3.75098667,3242.2,3241.5,0.7892]
[1738271066426,3.08461,3241.9,3241.5,0.7892]
[1738271066665,3.08461,3241.9,3241.6,35.0]
[1738271067178,0.66666667,3242.2,3241.7,0.55]
[1738271067355,0.66666667,3242.2,3241.6,0.60652256]
[1738271067548,6.16897,3242.1,3241.6,0.60652256]